bitfinex-derivatives/quotes_SOLF0:USTF0_20260129
["timestamp","ask_amount","ask_price","bid_price","bid_amount"]
[1769727931766,6.12358663,117.4,117.34,2.7007513]
[1769727933473,13.80248663,117.4,117.34,10.3833513]
[1769727936377,6.89104932,117.39,117.34,10.3833513]
[1769727936564,6.12358663,117.4,117.35,10.38770384]
[1769727936769,3.35984529,117.42,117.36,5.49528156]
[1769727936973,6.89221304,117.41,117.36,5.49528156]
[1769727937171,3.35984529,117.42,117.36,5.49528156]
[1769727937370,6.89443029,117.41,117.36,5.49528156]
[1769727937571,3.35984529,117.4,117.35,7.6814]
[1769727937772,3.35984529,117.39,117.34,5.49528156]
[1769727939378,3.35984529,117.39,117.35,7.6819]
[1769727941674,2.78947772,117.42,117.37,2.70580384]
[1769727941876,6.89975301,117.41,117.37,2.70580384]
[1769727942077,3.35984529,117.42,117.37,2.70580384]
[1769727942381,6.90014508,117.41,117.37,10.38640384]
[1769727942577,3.35984529,117.42,117.37,10.38640384]
[1769727942880,6.90051406,117.41,117.37,10.38640384]
[1769727943079,3.35984529,117.42,117.37,10.38640384]
[1769727943384,6.90092499,117.41,117.37,10.38640384]
[1769727943582,3.35984529,117.42,117.37,10.38640384]
[1769727943781,6.90298663,117.41,117.37,10.38640384]
[1769727943981,3.35984529,117.42,117.37,10.38640384]
[1769727944181,6.90314969,117.41,117.37,10.38640384]
[1769727944378,3.35984529,117.42,117.37,10.38640384]
[1769727944579,6.90434533,117.41,117.37,10.38640384]
[1769727944880,11.03724529,117.42,117.37,2.70580384]
[1769727945081,6.90432062,117.41,117.37,2.70580384]
[1769727945383,3.35984529,117.41,117.36,7.6812]
[1769727945684,3.35984529,117.38,117.33,2.70580384]
[1769727945982,6.14932301,117.38,117.33,2.70580384]
[1769727947290,6.14932301,117.38,117.33,10.38900384]
[1769727947680,3.35984529,117.38,117.33,10.38900384]
[1769727948476,11.04004529,117.38,117.33,2.70580384]
[1769727950091,6.90962273,117.37,117.33,2.70580384]
[1769727950291,11.04004529,117.38,117.33,2.70580384]
[1769727950492,6.90962273,117.37,117.33,2.70580384]
[1769727950691,11.04004529,117.38,117.33,2.70580384]
[1769727950890,6.90962273,117.37,117.33,2.70580384]
[1769727951084,13.82952301,117.38,117.33,2.70580384]
[1769727951279,11.04004529,117.38,117.33,2.70580384]
[1769727951485,11.04004529,117.38,117.33,5.49528156]
[1769727951786,13.82862301,117.4,117.34,2.70580384]
[1769727951985,6.9092729,117.39,117.34,2.70580384]
[1769727952184,13.82862301,117.4,117.34,2.70580384]
[1769727952386,6.90958198,117.39,117.34,2.70580384]
[1769727952693,13.82862301,117.4,117.34,2.70580384]
[1769727952893,10.26942727,117.39,117.34,2.70580384]
[1769727953094,3.35984529,117.39,117.34,2.70580384]
[1769727953283,6.90886266,117.38,117.34,2.70580384]
[1769727953483,3.35984529,117.39,117.34,2.70580384]
[1769727953484,11.03944529,117.39,117.34,2.70580384]
[1769727953689,6.90841038,117.38,117.34,2.70580384]
[1769727953987,6.90841038,117.37,117.34,2.70580384]
[1769727954197,11.03944529,117.39,117.34,2.70580384]
[1769727954388,6.90763731,117.38,117.34,2.70580384]
[1769727954594,6.90763731,117.37,117.34,2.70580384]
[1769727954796,11.03944529,117.39,117.34,2.70580384]
[1769727955004,6.90774048,117.38,117.34,2.70580384]
[1769727955294,6.90774048,117.37,117.34,2.70580384]
[1769727955496,13.82892301,117.39,117.34,2.70580384]
[1769727955694,6.90714213,117.38,117.34,2.70580384]
[1769727955896,6.90714213,117.37,117.34,2.70580384]
[1769727956191,3.24338991,117.37,117.32,10.39014667]
[1769727958694,10.14407974,117.36,117.32,7.6839]
[1769727958894,3.24338991,117.36,117.32,7.6839]
[1769727960498,10.92338991,117.38,117.32,10.39014667]
[1769727960690,6.90001722,117.37,117.32,13.17962439]
[1769727960886,3.24338991,117.4,117.35,5.49572439]
[1769727961201,6.90091422,117.39,117.36,2.78947772]
[1769727961394,3.24338991,117.4,117.36,2.78947772]
[1769727961701,6.90159331,117.39,117.35,5.49572439]
[1769727961992,3.24338991,117.42,117.38,2.78947772]
[1769727962201,3.24338991,117.44,117.38,2.78947772]
[1769727962395,6.90467386,117.43,117.38,5.49572439]
[1769727962593,3.24338991,117.44,117.39,5.49572439]
[1769727962895,3.24338991,117.44,117.4,2.78947772]
[1769727963093,3.24338991,117.42,117.36,2.70624667]
[1769727963397,3.24338991,117.42,117.36,5.49572439]
[1769727963695,3.24338991,117.42,117.37,2.78947772]
[1769727964295,3.24338991,117.39,117.32,5.49580211]
[1769727964591,6.89935397,117.38,117.33,5.49580211]
[1769727964786,3.24338991,117.41,117.35,2.78947772]
[1769727964992,6.90020666,117.4,117.35,2.78947772]
[1769727965191,3.24338991,117.41,117.35,2.78947772]
[1769727965492,3.24338991,117.41,117.35,5.49580211]
[1769727965695,3.24338991,117.41,117.36,2.78947772]
[1769727965884,3.24338991,117.41,117.37,2.78947772]
[1769727966593,7.6774,117.43,117.37,2.78947772]
[1769727966796,7.91960817,117.49,117.42,2.78947772]
[1769727966986,6.90363021,117.48,117.42,2.78947772]
[1769727967191,14.57833021,117.47,117.42,2.78947772]
[1769727967488,14.57833021,117.47,117.41,3.59205476]
[1769727967489,6.90363021,117.46,117.4,2.78947772]
[1769727967685,6.90363021,117.45,117.37,10.23101217]
[1769727967885,6.90363021,117.44,117.37,3.59205476]
[1769727968086,6.90363021,117.43,117.37,3.59205476]
[1769727968290,119.3888,117.46,117.37,3.59205476]
[1769727968493,6.89775116,117.45,117.37,3.59205476]
[1769727968697,7.6768,117.43,117.37,3.59205476]
[1769727970295,10.91948991,117.44,117.38,3.59205476]
[1769727973295,7.6761,117.44,117.39,3.59205476]
[1769727973501,7.6755,117.45,117.4,3.59205476]
[1769727974398,3.24338991,117.49,117.42,3.59205476]
[1769727974702,3.24338991,117.49,117.39,119.4555]
[1769727974703,3.24338991,117.49,117.44,3.59205476]
[1769727975404,3.24338991,117.46,117.41,3.59205476]
[1769727975709,3.24338991,117.46,117.39,17.90936594]
[1769727975895,3.24338991,117.46,117.39,3.59205476]
[1769727976205,7.6756,117.45,117.39,3.59205476]
[1769727977303,3.24338991,117.46,117.4,3.59205476]
[1769727977498,3.24338991,117.48,117.4,3.59205476]
[1769727978300,7.6748,117.46,117.4,11.27075476]
[1769727979799,7.6755,117.45,117.4,3.59205476]
[1769727981706,10.91888991,117.45,117.4,3.59205476]
[1769727986009,3.24338991,117.45,117.4,3.59205476]
[1769727986212,3.42787669,117.47,117.4,3.59205476]
[1769727987308,7.6748,117.46,117.4,11.27075476]
[1769727991309,11.10267669,117.46,117.4,11.27075476]
[1769727991815,11.10267669,117.46,117.41,2.7873482]
[1769727993508,11.10267669,117.46,117.4,11.27075476]
[1769727995012,11.10267669,117.46,117.4,7.6787]
[1769727995210,10.98831063,117.48,117.41,3.55378259]
[1769727995815,3.31421063,117.45,117.39,3.55378259]
[1769727997318,3.31421063,117.45,117.4,11.23238259]
[1769727998221,3.31421063,117.44,117.39,7.6793]
[1769727998420,3.31421063,117.46,117.39,3.55378259]
[1769727999319,10.98911063,117.46,117.4,11.23238259]
[1769728001726,3.31421063,117.46,117.41,11.23158259]
[1769728002319,10.98911063,117.46,117.41,3.55378259]
[1769728002526,3.31421063,117.44,117.37,3.55378259]
[1769728003127,3.31421063,117.43,117.37,3.55378259]
[1769728003420,3.31421063,117.43,117.35,343.55378259]
[1769728003620,10.2001366,117.42,117.35,343.55378259]
[1769728003820,10.99221063,117.42,117.35,351.23558259]
[1769728004022,10.19971943,117.41,117.35,351.23558259]
[1769728004225,3.31421063,117.41,117.35,343.55378259]
[1769728005424,3.31421063,117.41,117.36,7.6813]
[1769728006530,3.31421063,117.43,117.37,3.55378259]
[1769728007933,3.31421063,117.45,117.37,3.55378259]
[1769728008132,6.89768772,117.44,117.37,3.55378259]
[1769728008331,3.31421063,117.45,117.39,7.6793]
[1769728008533,6.89852084,117.44,117.39,7.6793]
[1769728008722,3.31421063,117.45,117.39,7.6793]
[1769728008921,6.89852084,117.44,117.39,7.6793]
[1769728009234,3.31421063,117.45,117.39,7.6793]
[1769728009428,6.89944247,117.44,117.39,7.6793]
[1769728009629,10.98971063,117.45,117.39,7.6793]
[1769728010133,10.98971063,117.45,117.39,11.23308259]
[1769728010435,3.31421063,117.45,117.4,3.55378259]
[1769728010637,10.98891063,117.47,117.41,3.55378259]
[1769728010824,6.90351084,117.46,117.41,3.55378259]
[1769728011027,10.98891063,117.47,117.41,3.55378259]
[1769728011228,6.90484518,117.46,117.41,3.55378259]
[1769728011427,10.98891063,117.47,117.41,3.55378259]
[1769728011725,6.90484518,117.46,117.41,3.55378259]
[1769728011926,10.98891063,117.47,117.41,3.55378259]
[1769728012126,6.90484518,117.46,117.41,3.55378259]
[1769728012321,10.98891063,117.47,117.41,3.55378259]
[1769728012531,6.90447621,117.46,117.41,3.55378259]
[1769728012734,10.98891063,117.47,117.41,63.55378259]
[1769728012925,6.90447621,117.46,117.41,63.55378259]
[1769728013125,10.98891063,117.47,117.41,63.55378259]
[1769728013330,17.89406953,117.46,117.41,63.55378259]
[1769728013630,13.00674089,117.45,117.41,60.0]
[1769728013933,6.90403998,117.44,117.41,60.0]
[1769728014136,6.10270091,117.45,117.41,60.0]
[1769728014335,6.90441923,117.44,117.41,60.0]
[1769728014629,6.10270091,117.45,117.41,60.0]
[1769728014838,6.90441923,117.44,117.41,60.0]
[1769728015031,6.10270091,117.45,117.41,60.0]
[1769728015232,6.90520557,117.44,117.41,60.0]
[1769728015533,6.10270091,117.45,117.41,60.0]
[1769728015736,6.90507849,117.44,117.41,60.0]
[1769728016029,6.10270091,117.45,117.41,60.0]
[1769728016238,6.90529769,117.44,117.41,60.0]
[1769728016425,6.10270091,117.45,117.41,60.0]
[1769728016630,6.9052932,117.44,117.41,60.0]
[1769728016838,13.77830091,117.45,117.41,60.0]
[1769728017038,6.90525489,117.44,117.41,60.0]
[1769728017334,13.77830091,117.45,117.41,60.0]
[1769728017534,6.90503231,117.44,117.41,60.0]
[1769728017738,13.77830091,117.45,117.41,60.0]
[1769728017934,6.90513873,117.44,117.41,60.0]
[1769728018130,13.77830091,117.45,117.41,60.0]
[1769728018339,6.90529968,117.44,117.41,60.0]
[1769728018632,13.77830091,117.45,117.41,60.0]
[1769728018834,6.9057703,117.44,117.41,60.0]
[1769728019033,13.77830091,117.45,117.41,60.0]
[1769728019234,6.90573523,117.44,117.41,60.0]
[1769728019436,13.77830091,117.45,117.41,60.0]
[1769728019736,6.90573528,117.44,117.41,60.0]
[1769728019937,13.77830091,117.45,117.41,60.0]
[1769728020138,6.90573528,117.44,117.41,60.0]
[1769728020339,13.77830091,117.45,117.41,60.0]
[1769728020537,6.90619006,117.44,117.41,60.0]
[1769728020739,13.77830091,117.45,117.41,60.0]
[1769728020938,6.90619006,117.44,117.41,60.0]
[1769728021140,10.98981063,117.45,117.41,60.0]
[1769728021438,6.90604175,117.44,117.41,60.0]
[1769728021636,10.98981063,117.45,117.41,60.0]
[1769728021934,14.58240868,117.44,117.41,60.0]
[1769728022136,10.16580876,117.43,117.38,2.78849028]
[1769728022340,6.90548795,117.42,117.37,6.33771307]
[1769728022542,6.04881109,117.43,117.37,6.33771307]
[1769728022543,7.6781,117.41,117.37,6.33771307]
[1769728022843,7.6781,117.41,117.37,3.54922279]
[1769728023230,7.6781,117.41,117.35,24.26411878]
[1769728023436,14.58104102,117.4,117.35,24.26411878]
[1769728023637,7.6788,117.4,117.35,24.26411878]
[1769728024945,7.6788,117.4,117.36,24.26411878]
[1769728025247,7.6781,117.41,117.37,24.26411878]
[1769728025644,7.6781,117.41,117.37,21.4756285]
[1769728027443,7.6788,117.4,117.37,21.4756285]
[1769728030252,7.6781,117.41,117.37,21.4756285]
[1769728045352,119.3885,117.46,117.37,21.4756285]
[1769728045648,6.9024812,117.45,117.4,21.4756285]
[1769728045854,6.9024812,117.44,117.4,21.4756285]
[1769728046050,122.17674965,117.46,117.4,21.4756285]
[1769728046244,6.90347277,117.45,117.4,21.4756285]
[1769728046444,6.90347277,117.44,117.4,21.4756285]
[1769728046648,122.17674965,117.46,117.4,21.4756285]
[1769728046852,6.90347277,117.45,117.4,21.4756285]
[1769728047044,6.90347277,117.44,117.4,21.4756285]
[1769728047253,122.17674965,117.46,117.4,21.4756285]
[1769728047452,7.6765,117.44,117.4,21.4756285]
[1769728053567,2.78824965,117.43,117.4,21.4756285]
[1769728053872,7.6768,117.43,117.4,21.4756285]
[1769728055061,7.6768,117.43,117.38,21.4756285]
[1769728055567,119.3885,117.46,117.39,24.26387815]
[1769728055875,9.63623691,117.45,117.39,21.4756285]
[1769728056055,6.84798726,117.44,117.39,21.4756285]
[1769728056258,2.78824965,117.45,117.39,21.4756285]
[1769728056459,14.52528543,117.44,117.39,21.4756285]
[1769728056655,7.6761,117.44,117.39,21.4756285]
[1769728056860,2.78824965,117.48,117.42,24.26387815]
[1769728057058,6.84914355,117.47,117.42,24.26387815]
[1769728057263,2.78824965,117.48,117.42,24.26387815]
[1769728057668,7.6736,117.48,117.42,24.26387815]
[1769728057865,9.63539966,117.47,117.42,21.4756285]
[1769728058168,2.78824965,117.44,117.38,2.78824965]
[1769728058660,2.78824965,117.45,117.38,2.78824965]
[1769728058861,6.84983765,117.44,117.38,2.78824965]
[1769728059062,2.78824965,117.45,117.38,2.78824965]
[1769728059259,6.84983782,117.44,117.38,2.78824965]
[1769728059466,7.6761,117.44,117.38,10.46804965]
[1769728060067,7.6761,117.44,117.39,14.1845785]
[1769728060468,10.46434965,117.44,117.39,14.1845785]
[1769728064570,10.46434965,117.44,117.39,16.97282815]
[1769728064767,7.6754,117.46,117.4,16.97282815]
[1769728066474,10.46364965,117.46,117.41,14.1845785]
[1769728073374,7.6757,117.45,117.41,14.1845785]
[1769728073575,2.78824965,117.44,117.41,7.85e-05]
[1769728074870,10.46484965,117.44,117.41,7.85e-05]
[1769728076678,7.6766,117.44,117.41,7.85e-05]
[1769728078682,7.6768,117.43,117.41,7.85e-05]
[1769728078877,0.48883924,117.44,117.39,7.0923285]
[1769728079083,10.16935958,117.43,117.36,10.46904965]
[1769728079289,9.68052034,117.42,117.36,10.46904965]
[1769728079586,2.78824965,117.42,117.36,10.46904965]
[1769728079974,7.6775,117.42,117.37,2.78824965]
[1769728080783,7.6775,117.42,117.36,7.6808]
[1769728080985,10.46574965,117.42,117.37,6.86988912]
[1769728081681,2.78824965,117.41,117.37,6.86988912]
[1769728082284,2.78824965,117.4,117.35,6.86988912]
[1769728083278,10.46704965,117.4,117.35,6.86988912]
[1769728089090,16.86204099,117.4,117.35,6.86988912]
[1769728090495,7.6795,117.39,117.35,6.86988912]
[1769728090789,10.46774965,117.39,117.35,6.86988912]
[1769728093299,7.6795,117.39,117.35,6.86988912]
[1769728096701,7.6801,117.38,117.35,6.86988912]
[1769728097195,10.47076267,117.38,117.33,346.84988912]
[1769728097404,2.79066267,117.38,117.33,346.84988912]
[1769728097709,2.79066267,117.37,117.33,6.86988912]
[1769728098100,7.6814,117.36,117.33,6.86988912]
[1769728098300,2.79066267,117.39,117.33,6.86988912]
[1769728098502,9.18565401,117.39,117.34,6.86988912]
[1769728099304,7.6808,117.37,117.34,6.86988912]
[1769728099603,7.6808,117.37,117.34,8.912e-05]
[1769728100601,7.6808,117.37,117.33,2.79066267]
[1769728101807,7.6808,117.37,117.33,9.66055179]
[1769728102711,7.6808,117.37,117.34,6.86988912]
[1769728106810,6.39499134,117.38,117.34,6.86988912]
[1769728106811,14.07509134,117.38,117.34,6.86988912]
[1769728108314,9.32450933,117.37,117.33,2.79066267]
[1769728109814,7.6801,117.38,117.33,20.51901169]
[1769728114610,10.348827,117.43,117.36,13.04153847]
[1769728114915,10.348827,117.41,117.36,13.04153847]
[1769728115212,18.027027,117.41,117.36,13.04153847]
[1769728116415,10.348827,117.4,117.36,10.2508758]
[1769728117017,10.348827,117.4,117.35,10.47206267]
[1769728117018,10.348827,117.4,117.35,7.6814]
[1769728117213,10.348827,117.4,117.35,17.9322758]
[1769728117515,13.13948967,117.4,117.35,17.9322758]
[1769728119118,10.348827,117.39,117.35,7.6814]
[1769728119319,13.13948967,117.38,117.34,7.6826]
[1769728119720,13.13948967,117.38,117.33,17.9340758]
[1769728123024,2.79066267,117.37,117.33,17.9340758]
[1769728123721,10.348827,117.38,117.33,17.9340758]
[1769728123722,13.13948967,117.38,117.33,17.9340758]
[1769728123913,6.90869264,117.37,117.33,17.9340758]
[1769728124118,2.79066267,117.37,117.33,17.9340758]
[1769728124825,20.81948967,117.38,117.33,10.2508758]
[1769728125021,13.13948967,117.36,117.3,350.3908758]
[1769728125323,17.25495932,117.35,117.3,350.3908758]
[1769728125522,13.13948967,117.35,117.3,350.3908758]
[1769728125924,20.04527746,117.34,117.3,340.14]
[1769728126221,13.13948967,117.34,117.3,340.14]
[1769728127425,13.13948967,117.34,117.29,10.2508758]
[1769728128023,10.348827,117.34,117.29,13.04153847]
[1769728129229,10.348827,117.36,117.31,13.04153847]
[1769728129525,10.348827,117.38,117.33,2.79066267]
[1769728129724,6.89775147,117.37,117.33,2.79066267]
[1769728129930,18.029427,117.38,117.33,2.79066267]
[1769728130123,6.89828611,117.37,117.33,2.79066267]
[1769728130322,18.029427,117.38,117.33,2.79066267]
[1769728130628,6.89818497,117.37,117.33,2.79066267]
[1769728130829,18.029427,117.38,117.33,2.79066267]
[1769728131122,6.89818497,117.37,117.33,2.79066267]
[1769728131327,18.029427,117.38,117.33,2.79066267]
[1769728131521,6.89814112,117.37,117.33,2.79066267]
[1769728131722,7.6808,117.37,117.33,2.79066267]
[1769728133628,7.6808,117.37,117.32,13.04153847]
[1769728134230,7.6808,117.37,117.33,2.79066267]
[1769728134731,18.028827,117.38,117.33,2.79066267]
[1769728134931,6.89774224,117.37,117.33,2.79066267]
[1769728135232,18.028827,117.38,117.33,2.79066267]
[1769728135431,6.89781917,117.37,117.33,2.79066267]
[1769728135633,18.028827,117.38,117.33,2.79066267]
[1769728135834,6.89777194,117.37,117.33,2.79066267]
[1769728136127,10.348827,117.38,117.33,14.92062645]
[1769728136333,12.27500121,117.4,117.36,2.79066267]
[1769728137429,19.95380121,117.4,117.36,2.79066267]
[1769728137627,19.95380121,117.4,117.35,14.92062645]
[1769728143338,19.95380121,117.4,117.35,12.12996378]
[1769728143734,12.27500121,117.39,117.34,22.60312645]
[1769728144335,19.95440121,117.39,117.34,14.92062645]
[1769728144539,19.95440121,117.39,117.34,12.12996378]
[1769728147448,19.95440121,117.39,117.34,14.92062645]
[1769728155549,19.95440121,117.39,117.34,14.92070337]
[1769728160846,7.6801,117.38,117.34,14.92070337]
[1769728161042,7.6801,117.38,117.34,12.12996378]
[1769728161242,19.95510121,117.38,117.34,12.12996378]
[1769728161443,19.95510121,117.38,117.33,10.47393959]
[1769728161642,12.27500121,117.37,117.33,10.47393959]
[1769728162042,12.27500121,117.37,117.32,22.60450337]
[1769728162643,12.27500121,117.37,117.32,10.47453959]
[1769728162848,21.95685566,117.36,117.29,14.92070337]
[1769728163045,15.0657408,117.36,117.3,14.92070337]
[1769728163247,12.27500121,117.35,117.3,22.60590337]
[1769728166647,16.41111078,117.34,117.29,14.42215403]
[1769728168151,13.62037119,117.34,117.29,17.21289362]
[1769728168353,21.30307119,117.34,117.29,17.21289362]
[1769728169845,21.30307119,117.34,117.29,14.42215403]
[1769728170753,24.09381078,117.34,117.29,14.42215403]
[1769728173657,10.47413959,117.33,117.29,14.42215403]
[1769728174858,16.41111078,117.34,117.29,14.42215403]
[1769728176558,13.62037119,117.34,117.3,14.10846099]
[1769728177459,13.62037119,117.34,117.3,21.79366099]
[1769728185869,13.62037119,117.34,117.31,7.6846]
[1769728190572,16.41111078,117.34,117.31,7.6846]
[1769728190772,16.41111078,117.34,117.32,7.6839]
[1769728191070,17.81706716,117.35,117.32,7.6839]
[1769728192865,17.81706716,117.35,117.31,7.6845]
[1769728194569,17.81706716,117.34,117.3,7.6852]
[1769728195273,17.81706716,117.33,117.3,7.6852]
[1769728195774,15.02632757,117.33,117.3,7.6852]
[1769728198575,17.81706716,117.33,117.3,7.6852]
[1769728199279,15.02632757,117.33,117.3,7.6852]
[1769728199876,17.81706716,117.33,117.3,7.6852]
[1769728200570,15.65439542,117.31,117.29,7.6859]
[1769728200878,18.44513501,117.31,117.29,7.6859]
[1769728201182,2.79073959,117.32,117.29,7.6859]
[1769728201376,2.79073959,117.33,117.29,7.6859]
[1769728201578,6.90575782,117.32,117.29,7.6859]
[1769728201887,2.79073959,117.32,117.29,7.6859]
[1769728202981,2.79073959,117.33,117.29,7.6859]
[1769728203185,6.90924437,117.32,117.29,7.6859]
[1769728203379,18.44513501,117.33,117.29,7.6859]
[1769728203684,6.90891512,117.32,117.29,7.6859]
[1769728203877,18.44513501,117.33,117.29,7.6859]
[1769728204078,25.35405013,117.32,117.29,7.6859]
[1769728204375,18.44513501,117.32,117.29,7.6859]
[1769728204576,18.44513501,117.36,117.3,18.68652254]
[1769728204774,18.44513501,117.36,117.32,2.79073959]
[1769728204775,6.91167557,117.35,117.32,2.79073959]
[1769728204976,15.65439542,117.36,117.32,2.79073959]
[1769728205177,6.91197291,117.35,117.32,2.79073959]
[1769728205378,15.65439542,117.36,117.32,2.79073959]
[1769728205581,6.91465125,117.35,117.32,2.79073959]
[1769728205785,15.65439542,117.36,117.31,18.68652254]
[1769728205983,6.91491177,117.35,117.31,18.68652254]
[1769728206179,6.91833978,117.34,117.31,18.68652254]
[1769728206483,15.65439542,117.36,117.31,18.68652254]
[1769728206684,6.91833978,117.35,117.31,26.37102254]
[1769728206879,6.91833978,117.34,117.31,26.37102254]
[1769728207183,15.65439542,117.36,117.31,26.37102254]
[1769728207386,6.92062007,117.35,117.31,26.37102254]
[1769728207684,6.92062007,117.34,117.31,26.37102254]
[1769728207884,15.65439542,117.36,117.31,26.37102254]
[1769728208088,6.92062007,117.35,117.31,26.37102254]
[1769728208288,6.92062007,117.34,117.31,26.37102254]
[1769728208584,15.65439542,117.36,117.31,26.37102254]
[1769728208785,6.92116325,117.35,117.31,26.37102254]
[1769728208982,6.92116325,117.34,117.31,26.37102254]
[1769728209285,15.65439542,117.36,117.31,26.37102254]
[1769728209481,6.92153687,117.35,117.31,26.37102254]
[1769728209682,6.92153687,117.34,117.31,15.89578295]
[1769728209887,15.65439542,117.35,117.31,15.89578295]
[1769728210078,6.9230981,117.34,117.31,15.89578295]
[1769728210281,6.92351498,117.33,117.3,10.47563959]
[1769728210585,15.65439542,117.35,117.3,10.47563959]
[1769728210781,6.92351498,117.34,117.3,26.37142254]
[1769728211083,6.92351498,117.33,117.3,26.37142254]
[1769728211287,15.65439542,117.35,117.3,26.37142254]
[1769728211484,6.92415502,117.34,117.3,26.37142254]
[1769728211687,15.65439542,117.35,117.3,26.37142254]
[1769728211890,6.92428371,117.34,117.3,26.37142254]
[1769728212080,15.65439542,117.35,117.3,26.37142254]
[1769728212282,6.92428371,117.34,117.3,26.37142254]
[1769728212481,15.65439542,117.35,117.3,26.37142254]
[1769728212682,6.92428349,117.34,117.31,7.6845]
[1769728212883,15.65439542,117.35,117.31,7.6845]
[1769728213083,6.92428349,117.34,117.31,7.6845]
[1769728213385,15.65439542,117.35,117.31,7.6845]
[1769728213576,6.92433276,117.34,117.31,7.6845]
[1769728213780,15.65439542,117.35,117.31,7.6845]
[1769728213988,6.92433276,117.34,117.31,7.6845]
[1769728214188,15.65439542,117.35,117.31,7.6845]
[1769728214390,6.92436239,117.34,117.31,7.6845]
[1769728214587,15.65439542,117.35,117.31,7.6845]
[1769728214588,6.92436239,117.33,117.31,7.6845]
[1769728214787,15.65439542,117.35,117.31,7.6845]
[1769728215089,22.57875781,117.34,117.3,26.37172254]
[1769728215387,6.92436239,117.33,117.3,23.58098295]
[1769728215592,15.65439542,117.34,117.3,23.58098295]
[1769728215793,6.92424727,117.33,117.29,10.47903813]
[1769728215988,6.92424727,117.32,117.3,15.89578295]
[1769728216188,7.682,117.35,117.3,18.68892108]
[1769728216492,6.92447134,117.34,117.3,18.68892108]
[1769728216687,6.92447134,117.33,117.3,18.68892108]
[1769728216994,23.33639542,117.35,117.3,18.68892108]
[1769728217193,6.92457001,117.34,117.3,18.68892108]
[1769728217384,6.92457001,117.33,117.3,23.58088295]
[1769728217691,23.33639542,117.35,117.3,23.58088295]
[1769728217890,6.9245495,117.34,117.3,23.58088295]
[1769728218091,6.9245495,117.33,117.3,15.89578295]
[1769728218287,23.33639542,117.35,117.3,15.89578295]
[1769728218481,22.57896119,117.34,117.29,10.47903813]
[1769728218688,22.57896119,117.33,117.29,26.37482108]
[1769728218890,6.92385279,117.32,117.29,26.37482108]
[1769728219090,15.65439542,117.33,117.29,26.37482108]
[1769728219290,6.92385279,117.32,117.29,26.37482108]
[1769728219490,15.65439542,117.33,117.29,26.37482108]
[1769728219690,6.92348124,117.32,117.29,26.37482108]
[1769728219891,15.65439542,117.33,117.29,26.37482108]
[1769728220099,6.92348124,117.32,117.29,26.37482108]
[1769728220397,15.65439542,117.33,117.29,26.37482108]
[1769728220599,6.92313707,117.32,117.29,26.37482108]
[1769728220896,34.08171953,117.35,117.29,26.37482108]
[1769728220897,34.08171953,117.35,117.29,18.68892108]
[1769728221089,6.92313707,117.34,117.29,18.68892108]
[1769728221288,6.92313707,117.33,117.29,18.68892108]
[1769728221593,6.92313707,117.32,117.29,18.68892108]
[1769728221788,34.08171953,117.35,117.29,18.68892108]
[1769728221984,15.65439542,117.33,117.28,26.37532108]
[1769728222295,6.92281384,117.32,117.28,26.37532108]
[1769728222594,6.92190192,117.31,117.28,15.89578295]
[1769728222794,15.65439542,117.33,117.28,18.68892108]
[1769728223096,6.9218974,117.32,117.28,18.68892108]
[1769728223390,15.65439542,117.33,117.28,18.68892108]
[1769728223391,6.9218974,117.31,117.28,18.68892108]
[1769728223593,15.65439542,117.33,117.28,18.68892108]
[1769728223796,6.92110795,117.32,117.28,18.68892108]
[1769728223995,6.92110795,117.31,117.28,15.89578295]
[1769728224297,15.65439542,117.33,117.28,18.68892108]
[1769728224595,6.92039688,117.32,117.28,18.68892108]
[1769728224895,6.92039688,117.31,117.28,18.68892108]
[1769728225097,15.65439542,117.33,117.28,18.68892108]
[1769728225296,6.92039688,117.32,117.28,18.68892108]
[1769728225491,6.92039688,117.31,117.28,18.68892108]
[1769728225691,15.65439542,117.33,117.28,18.68892108]
[1769728225892,6.91919645,117.32,117.28,18.68892108]
[1769728226093,6.91919645,117.31,117.28,18.68892108]
[1769728226393,15.65439542,117.33,117.28,18.68892108]
[1769728226593,6.91879436,117.32,117.28,18.68892108]
[1769728226792,6.91879436,117.31,117.28,18.68892108]
[1769728227092,15.33694577,117.32,117.27,2.79313813]
[1769728227298,6.91861851,117.31,117.27,17.03326166]
[1769728227490,15.33694577,117.32,117.27,17.03326166]
[1769728227691,6.92124382,117.31,117.27,17.03326166]
[1769728227887,15.33694577,117.32,117.27,14.24012353]
[1769728228193,7.95218598,117.34,117.29,17.03326166]
[1769728228194,15.33694577,117.34,117.29,17.03326166]
[1769728228394,22.25892149,117.33,117.28,2.79313813]
[1769728228599,6.92197572,117.32,117.28,2.79313813]
[1769728228799,23.02034577,117.33,117.28,2.79313813]
[1769728228999,6.9218953,117.32,117.28,2.79313813]
[1769728229200,23.02034577,117.33,117.28,2.79313813]
[1769728229402,6.92199408,117.32,117.28,2.79313813]
[1769728229601,23.02034577,117.33,117.28,2.79313813]